[Event "*** SCC Grand Prix: Titled Tuesday Blitz"]
[Site "Chess.com"]
[Date "2020.06.02"]
[Round "7"]
[White "BlackBoarder"]
[Black "Angel_Hranitel_37"]
[Result "1/2-1/2"]
[WhiteElo "2632"]
[BlackElo "2409"]
[TimeControl "180+1"]
[EndTime "11:22:13 PDT"]
[Termination "Game drawn by agreement"]

1. e4 {[%clk 0:03:00.1]} 1... c5 {[%clk 0:02:59.7]} 2. Nf3 {[%clk 0:02:59.9]}
2... e6 {[%clk 0:03:00]} 3. c3 {[%clk 0:03:00.1]} 3... d5 {[%clk 0:02:59.8]} 4.
exd5 {[%clk 0:03:00.5]} 4... Qxd5 {[%clk 0:03:00.3]} 5. d4 {[%clk 0:03:00.6]}
5... Nf6 {[%clk 0:03:00.6]} 6. Na3 {[%clk 0:03:00.8]} 6... Qd8 {[%clk 0:03:00]}
7. Nc4 {[%clk 0:02:46]} 7... Nc6 {[%clk 0:02:58.5]} 8. Be3 {[%clk 0:02:43.5]}
8... cxd4 {[%clk 0:02:58.4]} 9. Nxd4 {[%clk 0:02:43.6]} 9... Nxd4 {[%clk
0:02:45.1]} 10. Qxd4 {[%clk 0:02:42.5]} 10... Qxd4 {[%clk 0:02:40.6]} 11. Bxd4
{[%clk 0:02:42.5]} 11... Be7 {[%clk 0:02:40.9]} 12. O-O-O {[%clk 0:02:39.3]}
12... O-O {[%clk 0:02:23.2]} 13. Be2 {[%clk 0:02:38.8]} 13... Ne8 {[%clk
0:01:32.4]} 14. Bf3 {[%clk 0:02:35.4]} 14... f6 {[%clk 0:01:29.8]} 15. Be3
{[%clk 0:02:24.5]} 15... e5 {[%clk 0:01:26.5]} 16. Na5 {[%clk 0:02:17.9]} 16...
Rb8 {[%clk 0:01:04.4]} 17. Bxa7 {[%clk 0:02:00.6]} 17... Ra8 {[%clk 0:01:03.9]}
18. Bb6 {[%clk 0:02:00.8]} 18... Ra6 {[%clk 0:01:03.8]} 19. Bd8 {[%clk
0:01:45.1]} 19... Bxd8 {[%clk 0:00:36]} 20. Rxd8 {[%clk 0:01:44]} 20... Nd6
{[%clk 0:00:28.3]} 21. Rxf8+ {[%clk 0:01:27.3]} 21... Kxf8 {[%clk 0:00:29.2]}
22. b4 {[%clk 0:01:25.4]} 22... b6 {[%clk 0:00:28.2]} 23. Nc6 {[%clk 0:01:18.9]}
23... Rxa2 {[%clk 0:00:27.5]} 24. Kb1 {[%clk 0:01:18.5]} 24... Rxf2 {[%clk
0:00:25.6]} 25. Rd1 {[%clk 0:01:18.8]} 25... Bf5+ {[%clk 0:00:19.3]} 26. Ka1
{[%clk 0:01:18.1]} 26... Nb5 {[%clk 0:00:16]} 27. Rd8+ {[%clk 0:00:47]} 27...
Kf7 {[%clk 0:00:16.1]} 28. Bd5+ {[%clk 0:00:47.3]} 28... Kg6 {[%clk 0:00:15.7]}
29. Ne7+ {[%clk 0:00:47.4]} 29... Kg5 {[%clk 0:00:14.2]} 30. Nxf5 {[%clk
0:00:45.1]} 30... Kxf5 {[%clk 0:00:15.1]} 31. Rc8 {[%clk 0:00:41.7]} 31... e4
{[%clk 0:00:11.3]} 32. Bc6 {[%clk 0:00:37.5]} 32... Nxc3 {[%clk 0:00:10.1]} 33.
Bd7+ {[%clk 0:00:37.4]} 33... Kf4 {[%clk 0:00:10.8]} 34. Rxc3 {[%clk 0:00:37.5]}
34... e3 {[%clk 0:00:11.2]} 35. Rc4+ {[%clk 0:00:29]} 35... Ke5 {[%clk
0:00:11.3]} 36. Bg4 {[%clk 0:00:07.8]} 36... e2 {[%clk 0:00:07.4]} 37. Bxe2
{[%clk 0:00:05.8]} 37... Rxe2 {[%clk 0:00:08.3]} 38. Rg4 {[%clk 0:00:06]} 38...
g5 {[%clk 0:00:07.7]} 39. Kb1 {[%clk 0:00:06.2]} 39... h5 {[%clk 0:00:07.6]} 40.
Rg3 {[%clk 0:00:06.4]} 40... h4 {[%clk 0:00:08.1]} 41. Rg4 {[%clk 0:00:06.6]}
41... Kd5 {[%clk 0:00:05.7]} 42. h3 {[%clk 0:00:04.4]} 42... Kc6 {[%clk
0:00:04.7]} 43. g3 {[%clk 0:00:03.9]} 43... hxg3 {[%clk 0:00:03.6]} 44. Rxg3
{[%clk 0:00:04.8]} 44... Kb5 {[%clk 0:00:04]} 45. Rg4 {[%clk 0:00:04.7]} 45...
Ka4 {[%clk 0:00:04.4]} 46. h4 {[%clk 0:00:04.7]} 46... gxh4 {[%clk 0:00:04.8]}
47. Rxh4 {[%clk 0:00:04.8]} 47... Rf2 {[%clk 0:00:04.4]} 48. Kc1 {[%clk
0:00:04.3]} 48... f5 {[%clk 0:00:03.4]} 49. Rd4 {[%clk 0:00:04.1]} 49... f4
{[%clk 0:00:03.5]} 50. Kd1 {[%clk 0:00:04.6]} 50... Rf3 {[%clk 0:00:03.3]} 51.
Ke2 {[%clk 0:00:04.8]} 51... Rb3 {[%clk 0:00:03.8]} 52. Rxf4 {[%clk 0:00:05]}
52... Rxb4 {[%clk 0:00:04.6]} 53. Rf5 {[%clk 0:00:04.7]} 53... b5 {[%clk
0:00:05.2]} 54. Kd2 {[%clk 0:00:05.1]} 54... Rc4 {[%clk 0:00:05.7]} 55. Rf1
{[%clk 0:00:04.3]} 55... Rc8 {[%clk 0:00:06]} 56. Ra1+ {[%clk 0:00:04.3]} 56...
Kb4 {[%clk 0:00:06.2]} 57. Rb1+ {[%clk 0:00:04.8]} 57... Ka5 {[%clk 0:00:06.7]}
58. Ra1+ {[%clk 0:00:05.2]} 58... Kb6 {[%clk 0:00:07.3]} 59. Rb1 {[%clk
0:00:05.8]} 59... Rc4 {[%clk 0:00:07.4]} 60. Kd3 {[%clk 0:00:06.1]} 60... Kc5
{[%clk 0:00:07.9]} 61. Kd2 {[%clk 0:00:03.4]} 61... Rh4 {[%clk 0:00:06.2]} 62.
Kc2 {[%clk 0:00:02.8]} 62... b4 {[%clk 0:00:06]} 63. Kb3 {[%clk 0:00:03]} 63...
Rh3+ {[%clk 0:00:06.2]} 64. Kb2 {[%clk 0:00:03.5]} 64... Kb5 {[%clk 0:00:06.5]}
65. Rg1 {[%clk 0:00:03.4]} 65... Ka4 {[%clk 0:00:07.4]} 66. Rg2 {[%clk
0:00:03.5]} 66... Rf3 {[%clk 0:00:07.3]} 67. Kb1 {[%clk 0:00:03.8]} 67... Rb3+
{[%clk 0:00:07.7]} 68. Ka2 {[%clk 0:00:03.7]} 68... Rc3 {[%clk 0:00:07.2]} 69.
Rg1 {[%clk 0:00:04]} 69... Rc4 {[%clk 0:00:07.7]} 70. Kb1 {[%clk 0:00:04.3]}
70... b3 {[%clk 0:00:08.2]} 71. Rg8 {[%clk 0:00:03.7]} 71... Kb4 {[%clk
0:00:07.2]} 72. Rb8+ {[%clk 0:00:03.8]} 72... Kc3 {[%clk 0:00:08.1]} 73. Rg8
{[%clk 0:00:04.3]} 73... Rc5 {[%clk 0:00:08.6]} 74. Rg3+ {[%clk 0:00:04.7]}
74... Kb4 {[%clk 0:00:09.1]} 75. Kb2 {[%clk 0:00:05.2]} 75... Rc2+ {[%clk
0:00:08.6]} 76. Kb1 {[%clk 0:00:05.8]} 76... Ka3 {[%clk 0:00:09.1]} 77. Rg8
{[%clk 0:00:05.3]} 77... Rb2+ {[%clk 0:00:09.6]} 78. Ka1 {[%clk 0:00:05.3]}
78... Ra2+ {[%clk 0:00:10.1]} 79. Kb1 {[%clk 0:00:05.8]} 79... Rh2 {[%clk
0:00:10.6]} 80. Ra8+ {[%clk 0:00:05.3]} 80... Kb4 {[%clk 0:00:11.3]} 81. Rb8+
{[%clk 0:00:05.6]} 1/2-1/2

[Event "*** SCC Grand Prix: Titled Tuesday Blitz"]
[Site "Chess.com"]
[Date "2020.06.02"]
[Round "7"]
[White "Zmeeed63"]
[Black "StockholmMissile"]
[Result "0-1"]
[WhiteElo "2221"]
[BlackElo "2439"]
[TimeControl "180+1"]
[EndTime "11:22:13 PDT"]
[Termination "StockholmMissile won on time"]

1. d4 {[%clk 0:03:00.9]} 1... Nf6 {[%clk 0:02:57.3]} 2. c4 {[%clk 0:03:01]} 2...
g6 {[%clk 0:02:56.2]} 3. Nc3 {[%clk 0:03:00.9]} 3... Bg7 {[%clk 0:02:56.5]} 4.
Nf3 {[%clk 0:03:01]} 4... O-O {[%clk 0:02:55]} 5. Bg5 {[%clk 0:03:01.1]} 5... d6
{[%clk 0:02:52.3]} 6. e3 {[%clk 0:02:58.1]} 6... h6 {[%clk 0:02:44.7]} 7. Bh4
{[%clk 0:02:57.7]} 7... c6 {[%clk 0:02:43.3]} 8. Be2 {[%clk 0:02:57.4]} 8...
Nbd7 {[%clk 0:02:42.6]} 9. O-O {[%clk 0:02:56.8]} 9... e5 {[%clk 0:02:41.9]} 10.
Rc1 {[%clk 0:02:47.6]} 10... Re8 {[%clk 0:02:39.6]} 11. b4 {[%clk 0:02:46.7]}
11... exd4 {[%clk 0:02:30.7]} 12. exd4 {[%clk 0:02:45.5]} 12... Nf8 {[%clk
0:02:29.4]} 13. d5 {[%clk 0:02:34.2]} 13... c5 {[%clk 0:02:16.7]} 14. bxc5
{[%clk 0:02:32.9]} 14... dxc5 {[%clk 0:02:17.6]} 15. h3 {[%clk 0:02:25.1]} 15...
b6 {[%clk 0:02:16.1]} 16. Bg3 {[%clk 0:02:24.3]} 16... Ne4 {[%clk 0:02:06.4]}
17. Nxe4 {[%clk 0:02:23.6]} 17... Rxe4 {[%clk 0:02:07.3]} 18. Bd3 {[%clk
0:02:23.4]} 18... Re8 {[%clk 0:02:04.3]} 19. Re1 {[%clk 0:02:23]} 19... Bd7
{[%clk 0:02:02.5]} 20. Qc2 {[%clk 0:02:20.2]} 20... Nh7 {[%clk 0:01:57.5]} 21.
Be5 {[%clk 0:02:14.3]} 21... Bxe5 {[%clk 0:01:50.3]} 22. Nxe5 {[%clk 0:02:15.2]}
22... Nf8 {[%clk 0:01:42.1]} 23. Qd2 {[%clk 0:01:58]} 23... Qg5 {[%clk 0:01:30]}
24. Qxg5 {[%clk 0:01:15.5]} 24... hxg5 {[%clk 0:01:30.9]} 25. Re3 {[%clk
0:01:14.3]} 25... Kg7 {[%clk 0:01:21.1]} 26. Rce1 {[%clk 0:00:48.8]} 26... Ba4
{[%clk 0:01:11.3]} 27. Nf3 {[%clk 0:00:44.1]} 27... Rxe3 {[%clk 0:01:08.3]} 28.
Rxe3 {[%clk 0:00:45]} 28... Kf6 {[%clk 0:01:05.5]} 29. Nd2 {[%clk 0:00:41.2]}
29... Nh7 {[%clk 0:00:44.8]} 30. Ne4+ {[%clk 0:00:26.7]} 30... Kg7 {[%clk
0:00:45.1]} 31. Rf3 {[%clk 0:00:16.4]} 31... Re8 {[%clk 0:00:38]} 32. Nd6 {[%clk
0:00:15]} 32... Re1+ {[%clk 0:00:37.9]} 33. Kh2 {[%clk 0:00:14.9]} 33... f5
{[%clk 0:00:37.6]} 34. Nc8 {[%clk 0:00:13.1]} 34... f4 {[%clk 0:00:20.3]} 35.
Nxa7 {[%clk 0:00:12.6]} 35... Bd1 {[%clk 0:00:20.4]} 36. Nc8 {[%clk 0:00:09.1]}
36... Bxf3 {[%clk 0:00:19.7]} 37. gxf3 {[%clk 0:00:10]} 37... Nf6 {[%clk
0:00:19.6]} 38. Nxb6 {[%clk 0:00:09.9]} 38... Rd1 {[%clk 0:00:19.6]} 39. Be4
{[%clk 0:00:09.3]} 39... Rd2 {[%clk 0:00:19.6]} 40. Kg2 {[%clk 0:00:09.2]} 40...
Ne8 {[%clk 0:00:16.5]} 41. Na4 {[%clk 0:00:08.6]} 41... Nd6 {[%clk 0:00:14.7]}
42. Nxc5 {[%clk 0:00:08.9]} 42... Nxc4 {[%clk 0:00:14.7]} 43. Ne6+ {[%clk
0:00:09.1]} 43... Kf6 {[%clk 0:00:14.2]} 44. a4 {[%clk 0:00:10]} 44... Ra2
{[%clk 0:00:13.4]} 45. Nc5 {[%clk 0:00:09.5]} 45... Nd6 {[%clk 0:00:13.2]} 46.
Bd3 {[%clk 0:00:07.5]} 46... Ke5 {[%clk 0:00:10.5]} 47. Be4 {[%clk 0:00:05.1]}
47... Nc4 {[%clk 0:00:07.8]} 48. Ne6 {[%clk 0:00:05.1]} 48... Rxa4 {[%clk
0:00:06.4]} 49. Nxg5 {[%clk 0:00:04.9]} 49... Ra2 {[%clk 0:00:06.6]} 50. h4
{[%clk 0:00:04.6]} 50... Ne3+ {[%clk 0:00:06.6]} 51. Kh3 {[%clk 0:00:04.9]}
51... Nxd5 {[%clk 0:00:07.1]} 52. Bxd5 {[%clk 0:00:04.4]} 52... Kxd5 {[%clk
0:00:07.6]} 53. Kg4 {[%clk 0:00:05.3]} 53... Ke5 {[%clk 0:00:07]} 54. Nf7+
{[%clk 0:00:04.8]} 54... Kf6 {[%clk 0:00:07.3]} 55. Ng5 {[%clk 0:00:04.1]} 55...
Ra4 {[%clk 0:00:03.7]} 56. Ne4+ {[%clk 0:00:04.1]} 56... Ke5 {[%clk 0:00:04.1]}
57. Kg5 {[%clk 0:00:04.7]} 57... Ra6 {[%clk 0:00:02.9]} 58. h5 {[%clk 0:00:04]}
58... gxh5 {[%clk 0:00:01.8]} 59. Kxh5 {[%clk 0:00:04.9]} 59... Ra3 {[%clk
0:00:02]} 60. Kg4 {[%clk 0:00:04.7]} 60... Ra8 {[%clk 0:00:02.1]} 61. Ng5 {[%clk
0:00:02.6]} 61... Rg8 {[%clk 0:00:03]} 62. Kh5 {[%clk 0:00:02.8]} 62... Rf8
{[%clk 0:00:03.5]} 63. Kg4 {[%clk 0:00:02.6]} 63... Rg8 {[%clk 0:00:03.9]} 64.
Kh5 {[%clk 0:00:03.5]} 64... Kf5 {[%clk 0:00:04.4]} 65. Nf7 {[%clk 0:00:03.6]}
65... Rg7 {[%clk 0:00:04.6]} 66. Nh6+ {[%clk 0:00:04]} 66... Kf6 {[%clk
0:00:04.5]} 67. Ng4+ {[%clk 0:00:04.2]} 67... Kf5 {[%clk 0:00:04.9]} 68. Nh6+
{[%clk 0:00:05.1]} 68... Ke5 {[%clk 0:00:05.3]} 69. Ng4+ {[%clk 0:00:05.6]}
69... Kd4 {[%clk 0:00:05.5]} 70. Nh6 {[%clk 0:00:06.5]} 70... Kd3 {[%clk
0:00:05.5]} 71. Nf5 {[%clk 0:00:06.2]} 71... Rg8 {[%clk 0:00:05.8]} 72. Nh6
{[%clk 0:00:06]} 72... Rg2 {[%clk 0:00:05.5]} 73. Ng4 {[%clk 0:00:06]} 73... Ke2
{[%clk 0:00:05]} 74. Kg5 {[%clk 0:00:06.5]} 74... Kxf3 {[%clk 0:00:05]} 75. Kf5
{[%clk 0:00:06.9]} 75... Rxg4 {[%clk 0:00:05.1]} 0-1

[Event "*** SCC Grand Prix: Titled Tuesday Blitz"]
[Site "Chess.com"]
[Date "2020.06.02"]
[Round "7"]
[White "Heineccius"]
[Black "Crazy_girl99"]
[Result "1-0"]
[WhiteElo "2612"]
[BlackElo "2415"]
[TimeControl "180+1"]
[EndTime "11:22:15 PDT"]
[Termination "Heineccius won on time"]

1. d4 {[%clk 0:03:00.9]} 1... d5 {[%clk 0:02:58.3]} 2. c4 {[%clk 0:03:00.3]}
2... e6 {[%clk 0:02:58.9]} 3. Nc3 {[%clk 0:02:58.5]} 3... c6 {[%clk 0:02:59]} 4.
e3 {[%clk 0:02:54.4]} 4... Nf6 {[%clk 0:02:58.2]} 5. Nf3 {[%clk 0:02:53.2]} 5...
Nbd7 {[%clk 0:02:58.3]} 6. Qc2 {[%clk 0:02:51.7]} 6... Be7 {[%clk 0:02:58.4]} 7.
b3 {[%clk 0:02:52.2]} 7... O-O {[%clk 0:02:56.8]} 8. Bd3 {[%clk 0:02:47.9]} 8...
b6 {[%clk 0:02:56.7]} 9. O-O {[%clk 0:02:47.1]} 9... Bb7 {[%clk 0:02:57.2]} 10.
Bb2 {[%clk 0:02:46.1]} 10... Rc8 {[%clk 0:02:56]} 11. Rad1 {[%clk 0:02:39]}
11... Bd6 {[%clk 0:02:52.7]} 12. e4 {[%clk 0:02:37.1]} 12... dxe4 {[%clk
0:02:52.2]} 13. Nxe4 {[%clk 0:02:37.9]} 13... Nxe4 {[%clk 0:02:52.3]} 14. Bxe4
{[%clk 0:02:38.3]} 14... Nf6 {[%clk 0:02:52.9]} 15. Bd3 {[%clk 0:02:28.8]} 15...
h6 {[%clk 0:02:53.1]} 16. c5 {[%clk 0:02:26.9]} 16... Bb8 {[%clk 0:02:47.4]} 17.
Ne5 {[%clk 0:02:25.3]} 17... Nd5 {[%clk 0:02:37.9]} 18. Qc1 {[%clk 0:02:17.4]}
18... Re8 {[%clk 0:02:16.6]} 19. Bb1 {[%clk 0:02:12.1]} 19... Qg5 {[%clk
0:02:13.3]} 20. f4 {[%clk 0:02:08.8]} 20... Qf6 {[%clk 0:02:03]} 21. Rf3 {[%clk
0:01:45.8]} 21... Ne7 {[%clk 0:01:56.8]} 22. Rh3 {[%clk 0:01:34]} 22... Nd5
{[%clk 0:01:36.2]} 23. Rf1 {[%clk 0:01:18.8]} 23... Ba6 {[%clk 0:01:34.4]} 24.
Rff3 {[%clk 0:00:51.7]} 24... Be2 {[%clk 0:00:58]} 25. Rf2 {[%clk 0:00:51.2]}
25... Ba6 {[%clk 0:00:57.5]} 26. Rff3 {[%clk 0:00:47.7]} 26... Be2 {[%clk
0:00:56.1]} 27. Qc2 {[%clk 0:00:43.3]} 27... Bxe5 {[%clk 0:00:37.8]} 28. Qh7+
{[%clk 0:00:21.3]} 28... Kf8 {[%clk 0:00:37.1]} 29. dxe5 {[%clk 0:00:16.8]}
29... Qd8 {[%clk 0:00:31.4]} 30. Rfg3 {[%clk 0:00:16]} 30... Nxf4 {[%clk
0:00:20.6]} 31. Qxg7+ {[%clk 0:00:14.8]} 31... Ke7 {[%clk 0:00:20.6]} 32. Qf6+
{[%clk 0:00:15.2]} 32... Kd7 {[%clk 0:00:20.7]} 33. Qxf4 {[%clk 0:00:15.1]}
33... Kc7 {[%clk 0:00:21.2]} 34. cxb6+ {[%clk 0:00:14.6]} 34... axb6 {[%clk
0:00:22]} 35. Rc3 {[%clk 0:00:14.6]} 35... Qd1+ {[%clk 0:00:20.2]} 36. Kf2
{[%clk 0:00:15]} 36... Qf1+ {[%clk 0:00:18]} 37. Ke3 {[%clk 0:00:15]} 37... Qxb1
{[%clk 0:00:18.5]} 38. Ba3 {[%clk 0:00:10.8]} 38... Ba6 {[%clk 0:00:18]} 39.
Bd6+ {[%clk 0:00:10.7]} 39... Kb7 {[%clk 0:00:18.4]} 40. Qd4 {[%clk 0:00:09.3]}
40... Qg1+ {[%clk 0:00:17.9]} 41. Ke4 {[%clk 0:00:08.9]} 41... Qe1+ {[%clk
0:00:17]} 42. Rhe3 {[%clk 0:00:09.1]} 42... Qh4+ {[%clk 0:00:17.5]} 43. Kf3
{[%clk 0:00:06.8]} 43... Qh5+ {[%clk 0:00:16.7]} 44. Kf2 {[%clk 0:00:06.3]}
44... Qxh2 {[%clk 0:00:16.5]} 45. Rf3 {[%clk 0:00:06.3]} 45... Qh5 {[%clk
0:00:14.1]} 46. Qf4 {[%clk 0:00:05.2]} 46... c5 {[%clk 0:00:07.3]} 47. Qxf7+
{[%clk 0:00:03.6]} 47... Qxf7 {[%clk 0:00:07.5]} 48. Rxf7+ {[%clk 0:00:04.2]}
48... Kc6 {[%clk 0:00:08.2]} 49. Rf6 {[%clk 0:00:05]} 49... Ra8 {[%clk
0:00:07.3]} 50. Rg3 {[%clk 0:00:05.1]} 50... Bb5 {[%clk 0:00:06.8]} 51. a4
{[%clk 0:00:05.5]} 51... Ba6 {[%clk 0:00:06.7]} 52. Rg7 {[%clk 0:00:05.8]} 52...
b5 {[%clk 0:00:06]} 53. a5 {[%clk 0:00:05]} 53... Rac8 {[%clk 0:00:04.7]} 54.
Ra7 {[%clk 0:00:04.8]} 54... Bb7 {[%clk 0:00:04.5]} 55. Rf7 {[%clk 0:00:05]}
55... Ba8 {[%clk 0:00:03.4]} 56. Rfc7+ {[%clk 0:00:04.6]} 56... Rxc7 {[%clk
0:00:03.8]} 57. Rxc7+ {[%clk 0:00:05.4]} 57... Kd5 {[%clk 0:00:04.4]} 58. Rxc5+
{[%clk 0:00:05.6]} 58... Ke4 {[%clk 0:00:05]} 59. Rxb5 {[%clk 0:00:06.5]} 59...
Bd5 {[%clk 0:00:04.8]} 60. Rb4+ {[%clk 0:00:07.4]} 60... Kf5 {[%clk 0:00:04]}
61. a6 {[%clk 0:00:08.3]} 61... h5 {[%clk 0:00:04.2]} 62. a7 {[%clk 0:00:08.1]}
62... Rg8 {[%clk 0:00:04.8]} 63. Rb8 {[%clk 0:00:08.1]} 63... Rxg2+ {[%clk
0:00:04.7]} 64. Ke3 {[%clk 0:00:08.5]} 64... Ra2 {[%clk 0:00:05]} 65. Kd4 {[%clk
0:00:07.8]} 65... h4 {[%clk 0:00:05]} 66. b4 {[%clk 0:00:08.1]} 66... h3 {[%clk
0:00:05]} 67. Rf8+ {[%clk 0:00:08.5]} 67... Kg6 {[%clk 0:00:04]} 68. Bb8 {[%clk
0:00:09.4]} 68... h2 {[%clk 0:00:03.9]} 69. Rh8 {[%clk 0:00:09.6]} 69... h1=Q
{[%clk 0:00:03.4]} 70. Rxh1 {[%clk 0:00:09.9]} 70... Bxh1 {[%clk 0:00:04.2]} 71.
b5 {[%clk 0:00:10.3]} 71... Bd5 {[%clk 0:00:04.9]} 72. Kc5 {[%clk 0:00:10.7]}
72... Rc2+ {[%clk 0:00:05]} 73. Kd6 {[%clk 0:00:09.6]} 73... Ra2 {[%clk
0:00:05.9]} 74. b6 {[%clk 0:00:09.6]} 74... Kf5 {[%clk 0:00:06.5]} 75. Bc7
{[%clk 0:00:07.8]} 75... Ke4 {[%clk 0:00:04.8]} 76. Kd7 {[%clk 0:00:07.8]} 76...
Ra4 {[%clk 0:00:04.1]} 77. Kc8 {[%clk 0:00:07.8]} 77... Kd4 {[%clk 0:00:04.2]}
78. Kb8 {[%clk 0:00:08.1]} 78... Kc5 {[%clk 0:00:03.2]} 79. b7 {[%clk
0:00:08.1]} 79... Bxb7 {[%clk 0:00:03.3]} 80. Kxb7 {[%clk 0:00:09]} 80... Rb4+
{[%clk 0:00:01.2]} 81. Kc8 {[%clk 0:00:08.7]} 81... Ra4 {[%clk 0:00:01.7]} 82.
Kb8 {[%clk 0:00:08.7]} 82... Kc6 {[%clk 0:00:01.1]} 83. Bd6 {[%clk 0:00:08.7]}
1-0

[Event "*** SCC Grand Prix: Titled Tuesday Blitz"]
[Site "Chess.com"]
[Date "2020.06.02"]
[Round "7"]
[White "zurzan"]
[Black "Vandros57"]
[Result "0-1"]
[WhiteElo "1924"]
[BlackElo "2235"]
[TimeControl "180+1"]
[EndTime "11:22:15 PDT"]
[Termination "Vandros57 won by checkmate"]

1. f4 {[%clk 0:03:00.9]} 1... d5 {[%clk 0:02:57.8]} 2. Nf3 {[%clk 0:03:00.8]}
2... Nf6 {[%clk 0:02:56.5]} 3. g3 {[%clk 0:03:01]} 3... g6 {[%clk 0:02:55.2]} 4.
Bg2 {[%clk 0:03:01.9]} 4... Bg7 {[%clk 0:02:54.6]} 5. O-O {[%clk 0:03:02.8]}
5... O-O {[%clk 0:02:54.1]} 6. d3 {[%clk 0:03:03.7]} 6... b6 {[%clk 0:02:52.1]}
7. c3 {[%clk 0:03:04.6]} 7... Bb7 {[%clk 0:02:51]} 8. Qe1 {[%clk 0:03:05.5]}
8... c5 {[%clk 0:02:47.4]} 9. a4 {[%clk 0:03:05]} 9... Nbd7 {[%clk 0:02:45.5]}
10. Na3 {[%clk 0:03:04.9]} 10... Re8 {[%clk 0:02:44.1]} 11. Ne5 {[%clk
0:03:00.6]} 11... Nxe5 {[%clk 0:02:40.6]} 12. fxe5 {[%clk 0:03:00.7]} 12... Nd7
{[%clk 0:02:37.4]} 13. d4 {[%clk 0:03:00.9]} 13... Nf8 {[%clk 0:02:27.7]} 14.
Nb5 {[%clk 0:03:00.2]} 14... a6 {[%clk 0:02:21.8]} 15. Na3 {[%clk 0:03:00.1]}
15... f6 {[%clk 0:02:12.6]} 16. Bf4 {[%clk 0:02:38.8]} 16... Ne6 {[%clk
0:02:06.8]} 17. exf6 {[%clk 0:02:32.9]} 17... exf6 {[%clk 0:02:00.6]} 18. Be3
{[%clk 0:02:22.9]} 18... cxd4 {[%clk 0:01:58]} 19. Bxd4 {[%clk 0:02:21.4]} 19...
Nxd4 {[%clk 0:01:56.3]} 20. cxd4 {[%clk 0:02:22.3]} 20... f5 {[%clk 0:01:50.3]}
21. Qd2 {[%clk 0:02:21.2]} 21... Qe7 {[%clk 0:01:46.1]} 22. Rae1 {[%clk
0:02:11.8]} 22... Qe3+ {[%clk 0:01:43.6]} 23. Qxe3 {[%clk 0:02:10.3]} 23... Rxe3
{[%clk 0:01:42.6]} 24. Nc2 {[%clk 0:02:06.7]} 24... Rb3 {[%clk 0:01:37.1]} 25.
Rb1 {[%clk 0:02:02]} 25... a5 {[%clk 0:01:28.2]} 26. e3 {[%clk 0:02:00.2]} 26...
Rc8 {[%clk 0:01:25.3]} 27. Rf2 {[%clk 0:01:53.4]} 27... Kf7 {[%clk 0:01:24.2]}
28. g4 {[%clk 0:01:47.4]} 28... Ke7 {[%clk 0:01:09.9]} 29. gxf5 {[%clk
0:01:46.8]} 29... g5 {[%clk 0:01:08.2]} 30. Bh3 {[%clk 0:01:31.6]} 30... Bf6
{[%clk 0:01:07.3]} 31. Bg4 {[%clk 0:01:24.9]} 31... Kd6 {[%clk 0:01:06.1]} 32.
Bd1 {[%clk 0:01:21.7]} 32... Re8 {[%clk 0:00:59.6]} 33. Kg2 {[%clk 0:01:15.5]}
33... Re4 {[%clk 0:00:57.9]} 34. h3 {[%clk 0:01:14.1]} 34... Rh4 {[%clk
0:00:53.8]} 35. Na3 {[%clk 0:01:05]} 35... Rxe3 {[%clk 0:00:49.2]} 36. Nb5+
{[%clk 0:01:04.5]} 36... Kd7 {[%clk 0:00:48.2]} 37. b4 {[%clk 0:00:49.4]} 37...
Rexh3 {[%clk 0:00:46]} 38. bxa5 {[%clk 0:00:42.4]} 38... Rh2+ {[%clk 0:00:45.4]}
39. Kf1 {[%clk 0:00:42.4]} 39... Rxf2+ {[%clk 0:00:44.7]} 40. Kxf2 {[%clk
0:00:42.3]} 40... bxa5 {[%clk 0:00:44.4]} 41. Rc1 {[%clk 0:00:37.5]} 41... Bc6
{[%clk 0:00:42.5]} 42. Na7 {[%clk 0:00:34.9]} 42... Bxd4+ {[%clk 0:00:40.5]} 43.
Kg3 {[%clk 0:00:34.3]} 43... Bxa7 {[%clk 0:00:39]} 44. Bg4 {[%clk 0:00:29.6]}
44... Bd4 {[%clk 0:00:31.2]} 45. f6+ {[%clk 0:00:28.8]} 45... Ke8 {[%clk
0:00:27.3]} 46. Rxc6 {[%clk 0:00:27.8]} 46... Kf7 {[%clk 0:00:25.1]} 47. Be2
{[%clk 0:00:23.4]} 47... Bxf6 {[%clk 0:00:23.9]} 48. Ra6 {[%clk 0:00:19.9]}
48... Rxa4 {[%clk 0:00:20.7]} 49. Ra7+ {[%clk 0:00:19]} 49... Kg6 {[%clk
0:00:19]} 50. Bd3+ {[%clk 0:00:18.9]} 50... Re4 {[%clk 0:00:16.8]} 51. Bxe4+
{[%clk 0:00:18.4]} 51... dxe4 {[%clk 0:00:16.7]} 52. Rxa5 {[%clk 0:00:19.3]}
52... h5 {[%clk 0:00:15.1]} 53. Kf2 {[%clk 0:00:19.1]} 53... h4 {[%clk
0:00:13.9]} 54. Ke3 {[%clk 0:00:18.8]} 54... Kh5 {[%clk 0:00:13.5]} 55. Kxe4
{[%clk 0:00:18.9]} 55... Kg4 {[%clk 0:00:13.5]} 56. Rf5 {[%clk 0:00:17.3]} 56...
Bd8 {[%clk 0:00:12.6]} 57. Rf8 {[%clk 0:00:16.7]} 57... Bc7 {[%clk 0:00:12.3]}
58. Rg8 {[%clk 0:00:16.5]} 58... Bf4 {[%clk 0:00:12]} 59. Ra8 {[%clk 0:00:14.3]}
59... h3 {[%clk 0:00:11.6]} 60. Ra1 {[%clk 0:00:12.5]} 60... h2 {[%clk
0:00:11.2]} 61. Rh1 {[%clk 0:00:12.3]} 61... Kg3 {[%clk 0:00:10.6]} 62. Rf1
{[%clk 0:00:08.5]} 62... Kg2 {[%clk 0:00:10.1]} 63. Rb1 {[%clk 0:00:06.3]} 63...
h1=Q {[%clk 0:00:08.9]} 64. Rb2+ {[%clk 0:00:07.2]} 64... Kg3+ {[%clk
0:00:06.8]} 65. Kf5 {[%clk 0:00:05.7]} 65... Qc1 {[%clk 0:00:05.7]} 66. Rb3+
{[%clk 0:00:05.1]} 66... Kh4 {[%clk 0:00:04.6]} 67. Rb7 {[%clk 0:00:03.4]} 67...
Qc8+ {[%clk 0:00:03.9]} 68. Kg6 {[%clk 0:00:03.2]} 68... Qxb7 {[%clk 0:00:04.1]}
69. Kf6 {[%clk 0:00:03.5]} 69... g4 {[%clk 0:00:03.7]} 70. Kf5 {[%clk
0:00:03.3]} 70... g3 {[%clk 0:00:03.9]} 71. Kxf4 {[%clk 0:00:03.5]} 71... g2
{[%clk 0:00:04.1]} 72. Ke3 {[%clk 0:00:04.4]} 72... g1=Q+ {[%clk 0:00:03.8]} 73.
Kd3 {[%clk 0:00:05.3]} 73... Qd7+ {[%clk 0:00:03.6]} 74. Kc2 {[%clk 0:00:06.2]}
74... Qgd1+ {[%clk 0:00:03.4]} 75. Kb2 {[%clk 0:00:06.2]} 75... Q7d4+ {[%clk
0:00:03.4]} 76. Ka2 {[%clk 0:00:06]} 76... Q1a4+ {[%clk 0:00:02.5]} 77. Kb1
{[%clk 0:00:05.7]} 77... Qd3+ {[%clk 0:00:02.5]} 78. Kc1 {[%clk 0:00:05.8]}
78... Qa1# {[%clk 0:00:02.1]} 0-1